bitfinex/quotes_BTCUSD_20251120
["timestamp","ask_amount","ask_price","bid_price","bid_amount"]
[1763668863950,0.11476708,86997.0,86975.0,0.03068381]
[1763668864147,0.11476708,86997.0,86976.0,0.0816982]
[1763668864390,0.01804431,86995.0,86977.0,0.02459578]
[1763668864536,0.01804431,86995.0,86978.0,0.02459578]
[1763668864729,0.11476708,86997.0,86979.0,0.02459578]
[1763668864938,0.11476708,86997.0,86980.0,0.02459578]
[1763668865138,0.11476708,86997.0,86967.0,0.03068381]
[1763668865440,0.323,86996.0,86969.0,0.0246143]
[1763668865679,0.11476708,86983.0,86970.0,0.0246143]
[1763668865837,0.46551793,86980.0,86971.0,0.0246143]
[1763668866035,0.11476708,86983.0,86958.0,0.03068381]
[1763668866276,0.11476708,86983.0,86959.0,0.02462296]
[1763668866598,0.11476708,86983.0,86960.0,0.02462296]
[1763668866804,0.11476708,86983.0,86961.0,0.02462296]
[1763668866950,0.11476708,86983.0,86962.0,0.02462296]
[1763668867161,0.11476708,86983.0,86955.0,0.03068381]
[1763668867162,0.11476708,86963.0,86955.0,0.03068381]
[1763668867365,0.11476708,86963.0,86937.0,0.02619767]
[1763668867366,0.11476708,86963.0,86956.0,0.02462749]
[1763668867575,0.11476708,86963.0,86957.0,0.02462749]
[1763668867798,0.02952641,86962.0,86943.0,0.03068381]
[1763668868197,0.02952641,86962.0,86944.0,0.02463436]
[1763668868198,0.323,86959.0,86944.0,0.02463436]
[1763668868397,0.323,86959.0,86945.0,0.02463436]
[1763668868528,0.323,86959.0,86940.0,0.0004]
[1763668868529,0.11476708,86949.0,86940.0,0.0004]
[1763668868770,0.11476708,86949.0,86941.0,0.02463407]
[1763668868960,0.11476708,86949.0,86940.0,0.0004]
[1763668869362,0.13247946,86949.0,86940.0,0.0004]
[1763668869760,0.01771238,86949.0,86940.0,0.0004]
[1763668870048,0.001,86959.0,86940.0,0.0004]
[1763668870193,0.11476708,86949.0,86940.0,0.0004]
[1763668870811,0.01778633,86959.0,86940.0,0.0004]
[1763668870812,0.34078633,86959.0,86940.0,0.0004]
[1763668871433,0.11476708,86949.0,86940.0,0.0004]
[1763668872468,0.323,86948.0,86940.0,0.0004]
[1763668873313,0.323,86948.0,86937.0,0.00347767]
[1763668873314,3.0,86947.0,86930.0,0.0004]
[1763668873554,0.323,86930.0,86920.0,0.0004]
[1763668874168,0.11476708,86931.0,86920.0,0.0004]
[1763668874850,0.46551793,86930.0,86920.0,0.0004]
[1763668875065,0.11476708,86931.0,86920.0,0.0004]
[1763668875226,0.12624379,86931.0,86920.0,0.0004]
[1763668875478,0.78851793,86930.0,86920.0,0.0004]
[1763668875691,0.323,86930.0,86920.0,0.0004]
[1763668875860,0.12624379,86931.0,86920.0,0.0004]
[1763668875861,0.11476708,86931.0,86920.0,0.0004]
[1763668876219,0.11476708,86949.0,86920.0,0.0004]
[1763668876423,0.0180497,86962.0,86930.0,0.47694793]
[1763668876793,0.0180497,86962.0,86920.0,0.0004]
[1763668876794,0.11476708,86934.0,86920.0,0.0004]
[1763668876911,0.001,86930.0,86920.0,0.0004]
[1763668877318,0.11476708,86934.0,86920.0,0.0004]
[1763668878129,0.01805679,86931.0,86920.0,0.0004]
[1763668878353,0.11476708,86934.0,86920.0,0.0004]
[1763668878587,0.12624379,86934.0,86920.0,0.0004]
[1763668878814,0.323,86933.0,86920.0,0.0004]
[1763668879202,0.323,86933.0,86929.0,0.00025229]
[1763668880119,0.001,86933.0,86929.0,0.00025229]
[1763668880469,0.11476708,86949.0,86929.0,0.00025229]
[1763668880669,0.001,86933.0,86930.0,0.46551793]
[1763668880868,0.001,86933.0,86929.0,0.00025229]
[1763668881072,0.001,86933.0,86932.0,0.01568]
[1763668881289,0.019055,86933.0,86932.0,0.01568]
[1763668881526,0.019055,86933.0,86929.0,0.00025229]
[1763668881940,0.323,86958.0,86929.0,0.00025229]
[1763668882141,0.11476708,86946.0,86929.0,0.00025229]
[1763668882349,0.01157671,86945.0,86929.0,0.00025229]
[1763668882801,0.323,86968.0,86936.0,0.11476708]
[1763668883024,0.11476708,86969.0,86945.0,0.01143]
[1763668883516,0.11476708,86969.0,86929.0,0.00025229]
[1763668883517,0.11476708,86954.0,86929.0,0.00025229]
[1763668883644,0.01147671,86953.0,86930.0,0.46551793]
[1763668884035,0.323,86968.0,86940.0,0.46551793]
[1763668884798,0.323,86968.0,86931.0,0.02272]
[1763668884998,0.11476708,86955.0,86931.0,0.02272]
[1763668885392,0.11476708,86955.0,86929.0,0.00025229]
[1763668885572,0.01147671,86954.0,86929.0,0.00025229]
[1763668885994,0.11476708,86941.0,86929.0,0.00025229]
[1763668886865,0.323,86940.0,86929.0,0.00025229]
[1763668887710,0.01147671,86954.0,86929.0,0.00025229]
[1763668887913,0.323,86954.0,86929.0,0.00025229]
[1763668888243,0.11476708,86955.0,86930.0,0.78062279]
[1763668888440,0.11476708,86955.0,86929.0,0.00025229]
[1763668889164,0.001,86940.0,86929.0,0.00025229]
[1763668889516,0.11476708,86955.0,86929.0,0.00025229]
[1763668889725,0.01147671,86954.0,86929.0,0.00025229]
[1763668890537,0.78062279,86970.0,86929.0,0.00025229]
[1763668890538,0.323,86968.0,86930.0,0.02471]
[1763668890736,0.323,86968.0,86929.0,0.00025229]
[1763668890737,0.11476708,86953.0,86929.0,0.00025229]
[1763668891145,0.11476708,86939.0,86929.0,0.00025229]
[1763668891759,0.43776708,86953.0,86929.0,0.00025229]
[1763668891987,0.11476708,86939.0,86929.0,0.00025229]
[1763668892187,0.01147671,86938.0,86929.0,0.00025229]
[1763668892383,0.11476708,86939.0,86929.0,0.00025229]
[1763668893604,0.323,86938.0,86929.0,0.00025229]
[1763668893986,0.11476708,86939.0,86929.0,0.00025229]
[1763668894822,0.11476708,86939.0,86920.0,0.00014229]
[1763668894950,0.11476708,86939.0,86921.0,0.02461394]
[1763668895152,0.001,86938.0,86920.0,0.00014229]
[1763668895360,0.01805693,86935.0,86921.0,0.02462972]
[1763668895563,0.12624379,86939.0,86922.0,0.02462972]
[1763668895757,0.01262438,86938.0,86923.0,0.02462972]
[1763668895963,0.01262438,86938.0,86920.0,0.00014229]
[1763668896295,0.01262438,86938.0,86921.0,0.02462831]
[1763668896443,0.01262438,86938.0,86922.0,0.02462831]
[1763668896646,0.01262438,86938.0,86923.0,0.02462831]
[1763668896849,0.01283915,86937.0,86924.0,0.02462831]
[1763668897079,0.01283915,86937.0,86920.0,0.00014229]
[1763668897281,0.03233576,86936.0,86921.0,0.02463584]
[1763668897523,0.01077465,86935.0,86920.0,0.00014229]
[1763668897674,0.01283915,86937.0,86920.0,0.00014229]
[1763668897675,0.01077465,86934.0,86920.0,0.00014229]
[1763668897996,0.01077465,86934.0,86912.0,0.03068381]
[1763668897997,0.01077465,86933.0,86912.0,0.02975824]
[1763668898264,0.01077465,86933.0,86913.0,0.02464452]
[1763668898486,0.323,86938.0,86914.0,0.02464452]
[1763668898487,0.324,86938.0,86914.0,0.02464452]
[1763668898710,0.324,86938.0,86915.0,0.02464452]
[1763668898711,0.01805705,86928.0,86915.0,0.02464452]
[1763668898935,0.01805705,86928.0,86916.0,0.02464452]
[1763668899187,0.01805705,86928.0,86918.0,0.04077464]
[1763668899397,0.01805705,86928.0,86919.0,0.02464452]
[1763668899603,0.01805705,86928.0,86920.0,0.02464452]
[1763668899810,0.01805705,86928.0,86921.0,0.02464452]
[1763668900034,0.01805705,86928.0,86922.0,0.02464452]
[1763668900246,0.01805705,86928.0,86923.0,0.02464452]
[1763668900490,0.01805705,86928.0,86924.0,0.02464452]
[1763668900713,0.01805705,86928.0,86910.0,0.04117464]
[1763668900923,0.01805705,86928.0,86927.0,0.01154]
[1763668901133,0.01805705,86928.0,86927.0,0.03618991]
[1763668901348,0.01805705,86928.0,86927.0,0.07574991]
[1763668901569,0.11476708,86953.0,86927.0,0.07574991]
[1763668901854,0.0323452,86952.0,86928.0,0.02464991]
[1763668902061,0.02549208,86951.0,86929.0,0.02464991]
[1763668902268,0.11476708,86952.0,86930.0,0.02464991]
[1763668902493,0.11476708,86952.0,86931.0,0.02464991]
[1763668902705,0.11476708,86952.0,86929.0,0.02325]
[1763668902706,0.11476708,86952.0,86932.0,0.02464991]
[1763668902932,0.11476708,86952.0,86933.0,0.02464991]
[1763668903141,0.15160379,86952.0,86934.0,0.02464991]
[1763668903332,0.15160379,86952.0,86935.0,0.02464991]
[1763668903550,0.15160379,86952.0,86936.0,0.02464991]
[1763668903758,0.15160379,86952.0,86937.0,0.02464991]
[1763668903922,0.15160379,86952.0,86938.0,0.02464991]
[1763668904131,0.15060379,86952.0,86939.0,0.02464991]
[1763668904299,0.15060379,86952.0,86930.0,0.02325]
[1763668904300,0.11476708,86952.0,86940.0,0.02464991]
[1763668904507,0.01078273,86951.0,86927.0,0.01154]
[1763668904720,0.01078273,86950.0,86928.0,0.02464373]
[1763668904922,0.01265498,86950.0,86929.0,0.02464373]
[1763668905330,0.01265498,86950.0,86930.0,0.02464373]
[1763668905550,0.01265498,86950.0,86931.0,0.02464373]
[1763668905773,0.01078409,86949.0,86932.0,0.02464373]
[1763668905994,0.11476708,86938.0,86933.0,0.02464373]
[1763668906215,0.11476708,86938.0,86934.0,0.02464373]
[1763668906428,0.11476708,86938.0,86935.0,0.02464373]
[1763668906669,0.11476708,86938.0,86921.0,0.04102698]
[1763668906860,0.11476708,86938.0,86922.0,0.02465778]
[1763668907088,0.11476708,86938.0,86923.0,0.02465778]
[1763668907325,0.12624379,86938.0,86924.0,0.02465778]
[1763668907494,0.12624379,86938.0,86921.0,0.00025234]
[1763668907495,0.12624379,86938.0,86925.0,0.02465778]
[1763668907698,0.12624379,86938.0,86926.0,0.02465778]
[1763668907904,0.12624379,86938.0,86921.0,0.00025234]
[1763668907905,0.12624379,86938.0,86927.0,0.02465778]
[1763668908239,0.12624379,86938.0,86928.0,0.02465778]
[1763668908240,0.11476708,86938.0,86928.0,0.02465778]
[1763668908448,0.11576708,86938.0,86929.0,0.02465778]
[1763668908648,0.11576708,86938.0,86930.0,0.02465778]
[1763668908821,0.11476708,86936.0,86931.0,0.02465242]
[1763668909122,0.11476708,86936.0,86921.0,0.00025234]
[1763668909277,0.11476708,86936.0,86922.0,0.02465165]
[1763668909525,0.11476708,86936.0,86921.0,0.00025234]
[1763668909526,0.11476708,86936.0,86923.0,0.02465165]
[1763668909729,0.11476708,86936.0,86924.0,0.02465165]
[1763668909934,0.12634379,86936.0,86925.0,0.02465165]
[1763668910120,0.03236637,86935.0,86921.0,0.00025234]
[1763668910322,0.03236637,86934.0,86921.0,0.00025234]
[1763668910533,0.11476708,86933.0,86921.0,0.00025234]
[1763668912081,0.11576708,86933.0,86921.0,0.00025234]
[1763668912285,0.323,86930.0,86921.0,0.00025234]
[1763668912493,0.02157317,86929.0,86921.0,0.00025234]
[1763668912661,0.02157317,86928.0,86921.0,0.00025234]
[1763668912863,0.02157317,86927.0,86921.0,0.00025234]
[1763668913076,0.02157317,86926.0,86910.0,0.0004]
[1763668913332,0.60791272,86930.0,86910.0,0.0004]
[1763668913333,0.323,86918.0,86910.0,0.0004]
[1763668913686,0.02156313,86917.0,86910.0,0.0004]
[1763668913886,0.02156313,86916.0,86910.0,0.0004]
[1763668914115,0.02156313,86915.0,86910.0,0.0004]
[1763668914309,0.323,86918.0,86910.0,0.0004]
[1763668914310,0.02156313,86914.0,86910.0,0.0004]
[1763668914487,0.02156313,86914.0,86890.0,0.0004]
[1763668914489,0.323,86909.0,86890.0,0.0004]
[1763668914686,0.78062279,86910.0,86890.0,0.0004]
[1763668914687,0.323,86896.0,86890.0,0.0004]
[1763668915315,0.323,86896.0,86890.0,0.0008168]
[1763668915472,0.02153531,86895.0,86890.0,0.0008168]
[1763668915678,0.02153531,86894.0,86890.0,0.0008168]
[1763668915913,0.34008207,86896.0,86890.0,0.0008168]
[1763668915914,0.02153531,86893.0,86890.0,0.0008168]
[1763668916115,0.34008207,86896.0,86890.0,0.0008168]
[1763668916319,0.02151307,86895.0,86890.0,0.0008168]
[1763668916522,0.34008207,86896.0,86880.0,0.0004]
[1763668916836,0.34008207,86896.0,86880.0,0.0006253]
[1763668916837,0.43776708,86881.0,86880.0,0.0006253]
[1763668917448,0.437259,86881.0,86880.0,0.0006253]
[1763668917651,0.323,86881.0,86880.0,0.0006253]
[1763668917988,0.34106797,86881.0,86880.0,0.0006253]
[1763668919710,0.01806797,86881.0,86880.0,0.0006253]
[1763668920112,0.01806797,86881.0,86880.0,0.00191917]
[1763668923885,0.01906797,86881.0,86880.0,0.00191917]
[1763668924779,0.01906797,86881.0,86860.0,0.0004]
[1763668924996,0.01906797,86881.0,86860.0,0.00052514]
[1763668924997,0.323,86879.0,86860.0,0.00052514]
[1763668928909,0.01806797,86881.0,86860.0,0.00052514]
[1763668929108,0.11476708,86880.0,86860.0,0.00052514]
[1763668929933,0.2436,86888.0,86861.0,0.13895708]
[1763668930091,0.2436,86888.0,86862.0,0.323]
[1763668930309,0.2436,86888.0,86863.0,0.02419]
[1763668930530,0.2436,86888.0,86864.0,0.11493394]
[1763668930735,0.2436,86888.0,86872.0,0.00025255]
[1763668930936,0.02419,86910.0,86872.0,0.00025255]
[1763668931137,0.323,86894.0,86872.0,0.00025255]
[1763668931696,0.00601855,86917.0,86873.0,0.02419]
[1763668931896,0.00601855,86917.0,86872.0,0.00025255]
[1763668931897,0.323,86898.0,86872.0,0.00025255]
[1763668933250,0.323,86884.0,86872.0,0.00025255]
[1763668934380,0.323,86897.0,86872.0,0.00025255]
[1763668935908,0.324,86897.0,86872.0,0.00025255]
[1763668936117,0.323,86884.0,86872.0,0.00025255]
[1763668937147,0.001,86897.0,86872.0,0.00025255]
[1763668937353,0.03223732,86896.0,86872.0,0.00025255]
[1763668937561,0.323,86884.0,86872.0,0.00025255]
[1763668938789,0.2436,86898.0,86872.0,0.00025255]
[1763668938790,0.323,86897.0,86872.0,0.00025255]
[1763668938988,0.03225906,86896.0,86872.0,0.00025255]
[1763668939214,0.323,86897.0,86872.0,0.00025255]
[1763668939215,0.323,86884.0,86872.0,0.00025255]
[1763668942262,0.03234201,86883.0,86872.0,0.00025255]
[1763668942477,0.03234201,86882.0,86872.0,0.00025255]
[1763668942701,0.35534201,86881.0,86872.0,0.00025255]
[1763668942915,0.03234201,86880.0,86872.0,0.00025255]
[1763668943131,0.03234201,86879.0,86872.0,0.00025255]
[1763668943377,0.03234201,86878.0,86872.0,0.00025255]
[1763668943605,0.323,86881.0,86872.0,0.00025255]
[1763668943606,0.03234201,86877.0,86872.0,0.00025255]
[1763668943820,0.323,86881.0,86872.0,0.00025255]
[1763668943821,0.03234201,86876.0,86872.0,0.00025255]
[1763668944027,0.323,86881.0,86872.0,0.00025255]
[1763668944028,0.03234201,86875.0,86872.0,0.00025255]
[1763668944197,0.03235911,86874.0,86872.0,0.00025255]
[1763668944377,0.03235911,86873.0,86872.0,0.00025255]
[1763668945777,0.05042997,86873.0,86872.0,0.00025255]
[1763668946119,0.05046954,86873.0,86872.0,0.00025255]
[1763668947509,0.01807086,86873.0,86872.0,0.00025255]
[1763668947885,0.02886944,86873.0,86872.0,0.00025255]
[1763668948088,0.01807086,86873.0,86872.0,0.00025255]
[1763668948272,0.02886944,86873.0,86872.0,0.00025255]
[1763668948450,0.01807086,86873.0,86872.0,0.00025255]
[1763668948660,0.01807086,86873.0,86872.0,0.01677255]
[1763668949703,0.01807086,86873.0,86872.0,0.00025255]
[1763668950825,0.01807086,86873.0,86872.0,0.00125255]
[1763668951696,0.01807086,86873.0,86872.0,0.00025255]
[1763668956138,0.0288727,86873.0,86872.0,0.00025255]
[1763668956344,0.05047639,86873.0,86872.0,0.00025255]
[1763668956553,0.03240553,86873.0,86872.0,0.00025255]
[1763668958065,0.01080184,86873.0,86872.0,0.00025255]
[1763668958271,0.11476708,86880.0,86872.0,0.00025255]
[1763668960206,0.323,86879.0,86872.0,0.00025255]
[1763668961864,0.3205494,86879.0,86872.0,0.00025255]
[1763668963533,0.46673749,86870.0,86860.0,0.00052514]
[1763668963772,0.11476708,86861.0,86860.0,0.00052514]
[1763668963994,0.11476708,86861.0,86850.0,0.0004]
[1763668963995,0.323,86860.0,86850.0,0.0004]
[1763668964193,0.78973749,86860.0,86850.0,0.0004]
[1763668965330,0.79073749,86860.0,86850.0,0.0004]
[1763668966492,0.323,86839.0,86830.0,0.0004]
[1763668966684,0.46673749,86840.0,86830.0,0.00084508]
[1763668966685,0.43776708,86831.0,86830.0,0.00084508]
[1763668968226,0.323,86831.0,86830.0,0.00084508]
[1763668968630,0.33869629,86831.0,86830.0,0.00084508]
[1763668969362,0.323,86831.0,86830.0,0.00084508]
[1763668969710,0.323,86831.0,86830.0,0.00217165]
[1763668969912,0.34107538,86831.0,86830.0,0.00217165]
[1763668971102,0.323,86831.0,86830.0,0.00217165]
[1763668971666,0.323,86831.0,86830.0,0.01789165]
[1763668972074,0.11476708,86873.0,86831.0,0.05210249]
[1763668972075,0.03462178,86869.0,86831.0,0.05210249]
[1763668972275,0.03462178,86869.0,86843.0,0.01572]
[1763668972479,0.01147671,86872.0,86864.0,0.00025258]
[1763668972682,0.11476708,86873.0,86864.0,0.00025258]
[1763668972876,0.323,86872.0,86864.0,0.00025258]
[1763668973264,0.01592217,86872.0,86864.0,0.00025258]
[1763668973563,0.323,86872.0,86864.0,0.00069766]
[1763668973815,0.324,86872.0,86864.0,0.00069766]
[1763668974191,0.323,86872.0,86864.0,0.00069766]
[1763668974391,0.33843035,86872.0,86864.0,0.00069766]
[1763668974608,0.01807169,86871.0,86864.0,0.00069766]
[1763668976660,0.18429789,86872.0,86864.0,0.00069766]
[1763668976868,0.01807294,86870.0,86864.0,0.00069766]
[1763668977498,0.001,86871.0,86864.0,0.00069766]
[1763668977708,0.01543035,86872.0,86864.0,0.00069766]
[1763668978122,0.11476708,86873.0,86864.0,0.00069766]
[1763668978499,0.130439,86873.0,86864.0,0.00069766]
[1763668978703,3.0,86872.0,86864.0,0.00069766]
[1763668978902,0.0180726,86871.0,86864.0,0.00069766]
[1763668980918,0.0190726,86871.0,86830.0,0.0004]
[1763668981121,0.11476708,86850.0,86830.0,0.00061988]
[1763668981521,0.01147671,86849.0,86830.0,0.00061988]
[1763668981675,0.11476708,86836.0,86830.0,0.00061988]
[1763668982325,0.11476708,86850.0,86830.0,0.00061988]
[1763668982936,0.58150457,86850.0,86830.0,0.00061988]
[1763668983140,0.11476708,86850.0,86830.0,0.00061988]
[1763668983339,0.11476708,86859.0,86831.0,0.02384]
[1763668983496,0.11476708,86859.0,86830.0,0.46735737]
[1763668983700,0.11476708,86859.0,86830.0,0.00061988]
[1763668983950,0.01147671,86858.0,86830.0,0.00061988]
[1763668984167,0.33447671,86858.0,86830.0,0.00061988]
[1763668984351,0.33447671,86858.0,86830.0,0.46735737]
[1763668985113,0.2436,86869.0,86831.0,0.15242702]
[1763668985399,0.35533283,86868.0,86840.0,0.46673749]
[1763668985581,0.323,86858.0,86830.0,0.46735737]
[1763668985740,0.323,86858.0,86830.0,0.00061988]
[1763668986292,0.323,86858.0,86831.0,0.11476708]
[1763668986496,0.323,86858.0,86832.0,0.06059645]
[1763668986698,0.323,86858.0,86849.0,0.00047369]
[1763668986874,0.323,86858.0,86830.0,0.00061988]
[1763668987483,0.323,86870.0,86831.0,0.11476708]
[1763668987689,0.0107852,86869.0,86840.0,0.46673749]
[1763668987922,0.323,86870.0,86840.0,0.46673749]
[1763668988131,0.323,86870.0,86841.0,0.03587]
[1763668988500,0.0760338,86888.0,86842.0,0.02384]
[1763668988721,0.0130439,86872.0,86842.0,0.02384]
[1763668988911,0.0130439,86872.0,86850.0,0.46673749]
[1763668989115,0.01567192,86873.0,86851.0,0.03587]
[1763668989349,0.323,86871.0,86851.0,0.01203]
[1763668989696,0.323,86871.0,86841.0,0.04294056]
[1763668989697,0.323,86869.0,86841.0,0.01203]
[1763668990133,0.323,86869.0,86835.0,0.01203]
[1763668990309,0.11476708,86858.0,86835.0,0.01203]
[1763668990891,0.0180728,86853.0,86833.0,0.01203]
[1763668991098,0.0180728,86853.0,86834.0,0.01381947]
[1763668991410,0.0180728,86853.0,86833.0,0.01203]
[1763668991613,0.0180728,86853.0,86833.0,0.06952126]
[1763668992400,0.0180728,86853.0,86834.0,0.001]
[1763668992895,0.0180728,86853.0,86852.0,0.00037894]
[1763668993075,0.0288661,86853.0,86852.0,0.00037894]
[1763668993299,0.0288661,86853.0,86830.0,0.00061988]
[1763668993300,0.323,86851.0,86830.0,0.00061988]
[1763668993512,0.323,86839.0,86830.0,0.00061988]
[1763668993686,0.03237917,86838.0,86830.0,0.00061988]
[1763668993891,0.03237917,86837.0,86830.0,0.00061988]
[1763668994160,0.03237917,86836.0,86830.0,0.00061988]
[1763668994362,0.323,86839.0,86830.0,0.00061988]
[1763668994363,0.01079257,86835.0,86830.0,0.00061988]
[1763668994567,0.323,86847.0,86830.0,0.00061988]
[1763668994772,0.11476708,86831.0,86830.0,0.00061988]
[1763668995500,0.43776708,86831.0,86830.0,0.00061988]
[1763668997217,0.45584395,86831.0,86830.0,0.00061988]
[1763668997870,0.45684395,86831.0,86830.0,0.00061988]
[1763668998296,0.34107687,86831.0,86830.0,0.00061988]
[1763668998681,0.01807687,86831.0,86830.0,0.00061988]
[1763668998921,0.01807687,86831.0,86830.0,0.03951988]
[1763668999345,0.01807687,86831.0,86830.0,0.01637483]
[1763668999562,0.01807687,86831.0,86830.0,0.00131483]
[1763669000753,0.01807687,86831.0,86830.0,0.00231483]
[1763669001184,0.01807687,86831.0,86830.0,0.00131483]
[1763669001356,0.01807558,86831.0,86830.0,0.00231483]
[1763669001656,0.323,86843.0,86830.0,0.00231483]
[1763669001890,0.323,86843.0,86830.0,0.01567988]
[1763669002107,0.46673749,86860.0,86830.0,0.00061988]
[1763669002273,0.33377742,86857.0,86830.0,0.00061988]
[1763669002496,0.46673749,86860.0,86830.0,0.00061988]
[1763669002696,0.46673749,86870.0,86830.0,0.00061988]
[1763669002943,0.35836708,86872.0,86831.0,0.02384]
[1763669003079,0.46673749,86870.0,86830.0,0.46735737]
[1763669003281,0.323,86867.0,86830.0,0.46735737]
[1763669003482,0.46673749,86870.0,86830.0,0.00061988]
[1763669003708,0.01147671,86857.0,86830.0,0.46735737]
[1763669003888,0.01147671,86857.0,86830.0,0.00061988]
[1763669004083,0.33447671,86857.0,86830.0,0.00061988]
[1763669004287,0.01807319,86851.0,86830.0,0.00061988]
[1763669005767,0.11476708,86844.0,86830.0,0.00061988]
[1763669006093,0.323,86843.0,86830.0,0.00061988]
[1763669007119,0.323,86843.0,86842.0,0.00031584]
[1763669009068,0.11476708,86844.0,86842.0,0.00031584]
[1763669009263,0.11476708,86844.0,86830.0,0.00061988]
[1763669009483,0.11476708,86844.0,86843.0,0.00028426]
[1763669009741,0.01807319,86851.0,86843.0,0.00028426]
[1763669010002,0.11476708,86844.0,86830.0,0.00061988]
[1763669011936,0.01807319,86851.0,86830.0,0.00061988]
[1763669013422,0.11476708,86844.0,86830.0,0.00061988]
[1763669013679,0.01807319,86851.0,86830.0,0.00061988]
[1763669014711,0.78290142,86870.0,86830.0,0.00061988]
[1763669014869,0.11476708,86844.0,86830.0,0.00061988]
[1763669015450,0.323,86869.0,86830.0,0.00061988]
[1763669015658,0.01147671,86857.0,86830.0,0.00061988]
[1763669016067,0.33447671,86857.0,86830.0,0.00061988]
[1763669017088,0.33547671,86857.0,86830.0,0.00061988]
[1763669017446,0.01247671,86857.0,86831.0,0.02306]
[1763669017657,0.001,86857.0,86831.0,0.02306]
[1763669017824,0.01807345,86851.0,86831.0,0.03687994]
[1763669018239,0.01807361,86847.0,86832.0,0.02306]
[1763669018439,0.01807361,86847.0,86832.0,0.02990104]
[1763669018623,0.01807361,86847.0,86833.0,0.03554]
[1763669019204,0.01807361,86847.0,86833.0,0.01248]
[1763669019349,0.01807361,86847.0,86834.0,0.02306]
[1763669019678,0.01807361,86847.0,86846.0,0.01597]
[1763669019826,0.01807361,86847.0,86846.0,0.03863]
[1763669020027,0.01807361,86847.0,86846.0,0.09768655]
[1763669020438,0.01807345,86851.0,86847.0,0.05210249]
[1763669020727,0.01807345,86851.0,86850.0,0.01597]
[1763669020971,0.0004,86878.0,86850.0,0.01597]
[1763669021201,0.323,86871.0,86856.0,0.01248]
[1763669021445,0.323,86871.0,86850.0,0.01248]
[1763669021839,0.0004,86870.0,86850.0,0.01248]
[1763669022410,0.323,86871.0,86850.0,0.01248]
[1763669022808,0.0004,86881.0,86851.0,0.02306]
[1763669023013,0.11476708,86874.0,86851.0,0.02306]
[1763669023214,0.01147671,86873.0,86851.0,0.02306]
[1763669023634,0.02626507,86873.0,86851.0,0.02306]
[1763669024029,0.0004,86881.0,86851.0,0.02306]
[1763669024231,0.01807131,86868.0,86851.0,0.02306]
[1763669024405,0.323,86875.0,86851.0,0.02306]
[1763669024834,0.323,86875.0,86852.0,0.11476708]
[1763669025278,0.323,86875.0,86850.0,0.01248]
[1763669025475,0.11476708,86899.0,86853.0,0.13782708]
[1763669025476,0.323,86889.0,86853.0,0.13782708]
[1763669025771,0.323,86889.0,86874.0,0.01248]
[1763669025958,0.323,86884.0,86874.0,0.01248]
[1763669027067,0.0004,86875.0,86874.0,0.00021988]
[1763669027614,0.0180705,86875.0,86874.0,0.00021988]
[1763669028716,0.0180705,86875.0,86874.0,0.01618988]
[1763669029332,0.0180705,86875.0,86874.0,0.03924988]
[1763669030008,0.0180705,86875.0,86874.0,0.00021988]
[1763669030202,0.0188705,86875.0,86874.0,0.00021988]
[1763669030562,0.0188705,86875.0,86874.0,0.00121988]
[1763669030759,0.04246625,86875.0,86874.0,0.00121988]
[1763669031934,0.04246625,86875.0,86874.0,0.00021988]
[1763669032134,0.0188705,86875.0,86874.0,0.00021988]
[1763669032336,0.0184705,86875.0,86874.0,0.00021988]
[1763669033244,0.0180705,86875.0,86874.0,0.00021988]
[1763669033694,0.0180705,86875.0,86874.0,0.01618988]
[1763669033896,0.0180705,86875.0,86874.0,0.00021988]
[1763669034329,0.0184705,86875.0,86874.0,0.00021988]
[1763669035008,0.0188705,86875.0,86874.0,0.00021988]
[1763669035653,0.0184705,86875.0,86874.0,0.00021988]
[1763669036011,0.0180705,86875.0,86874.0,0.00021988]
[1763669036466,0.0184705,86875.0,86874.0,0.00021988]
[1763669037921,0.0004,86875.0,86874.0,0.00021988]
[1763669038125,0.0004,86886.0,86874.0,0.00021988]
[1763669038351,0.323,86878.0,86874.0,0.00021988]
[1763669038772,0.0004,86875.0,86874.0,0.00021988]
[1763669039158,0.0008,86875.0,86874.0,0.00021988]
[1763669039603,0.0004,86875.0,86874.0,0.00021988]
[1763669039783,0.0008,86875.0,86874.0,0.00021988]
[1763669039987,0.0004,86875.0,86874.0,0.00021988]
[1763669040399,0.0008,86875.0,86844.0,0.05210249]
[1763669040596,0.0008,86875.0,86844.0,4.429e-05]
[1763669040597,0.78290142,86870.0,86844.0,4.429e-05]
[1763669040779,0.0008,86875.0,86844.0,4.429e-05]
[1763669040780,0.00018,86874.0,86844.0,4.429e-05]
[1763669040985,0.03232247,86873.0,86844.0,4.429e-05]
[1763669041178,0.00018,86874.0,86844.0,4.429e-05]
[1763669041179,0.01807292,86867.0,86844.0,4.429e-05]
[1763669041450,0.01807292,86867.0,86845.0,0.02306]
[1763669041577,0.01807292,86867.0,86846.0,0.01381756]
[1763669042461,0.01907292,86867.0,86846.0,0.01381756]
[1763669042594,0.01907292,86867.0,86844.0,0.02345429]
[1763669042595,0.01907292,86867.0,86866.0,0.01146]
[1763669042806,0.01807292,86867.0,86866.0,0.01146]
[1763669043004,0.01807292,86867.0,86857.0,0.01146]
[1763669043403,0.01807292,86867.0,86852.0,0.01146]
[1763669044037,0.01807292,86867.0,86866.0,0.01652]
[1763669044378,0.01807292,86867.0,86858.0,0.02341]
[1763669044578,0.01807292,86867.0,86856.0,0.11476708]
[1763669044579,0.01807292,86867.0,86866.0,0.03993]
[1763669044751,0.01807292,86867.0,86866.0,0.01652]
[1763669044931,0.01807292,86867.0,86852.0,0.01146]
[1763669044932,0.01825292,86867.0,86852.0,0.01146]
[1763669045700,0.01825292,86867.0,86844.0,4.429e-05]
[1763669045701,0.00018,86853.0,86844.0,4.429e-05]
[1763669045956,0.323,86865.0,86844.0,4.429e-05]
[1763669046156,0.11589407,86865.0,86844.0,4.429e-05]
[1763669046361,0.11476708,86866.0,86844.0,4.429e-05]
[1763669047117,0.11476708,86866.0,86845.0,0.02341]
[1763669047413,0.01807292,86867.0,86846.0,0.08178157]
[1763669047818,0.01807292,86867.0,86848.0,0.05210249]
[1763669048140,0.01807292,86867.0,86847.0,0.0372274]
[1763669048141,0.01807292,86867.0,86851.0,0.05210249]
[1763669048511,0.01807292,86867.0,86853.0,0.05210249]
[1763669049100,0.01807049,86864.0,86854.0,0.02341]
[1763669049293,0.01807049,86864.0,86855.0,0.09173303]
[1763669049495,0.01807292,86867.0,86855.0,0.09173303]
[1763669049924,0.01807292,86867.0,86852.0,0.01146]
[1763669050531,0.01807292,86867.0,86841.0,0.13817708]
[1763669050728,0.11476708,86866.0,86841.0,0.02341]